Cogmind - Beta 13 @@@ ROGUE MODE // 2024.07.02 @ 12:28:15 Player: Mr.Morel Result: Self-destructed Performance ------------- Evolutions (2) 1000 Regions Visited (4) 800 Robots Destroyed (51) 255 Value Destroyed (1557) 1557 Prototype IDs (4) 80 Alien Tech Used (0) 0 Bonus (14) 14 TOTAL SCORE: 3706 Bonus ------- High Alert Combat Kills 43 Friendly Fire -29 Cogmind --------- Core Integrity 120/550 Matter 300/300 Energy 100/100 System Corruption 15% Temperature Cool (0) Movement Walking (130) Location -8/Materials Parts ------- > --- POWER (1) -------- (None) > --- PROPULSION (4) --- Titanium Leg > --- UTILITY (4) ------ Targeting Computer > --- WEAPON (2) ------- (None) > --- INVENTORY (5) ---- Improved Ion Engine Hardened Medium Armor Plating Hardlight Generator Signal Generator Peak State ------------ > --- POWER ------------ Light Nuclear Core > --- PROPULSION ------- Aluminum Leg Titanium Leg Titanium Leg Titanium Leg > --- UTILITY ---------- Improved Heat Sink Targeting Computer Hardened Medium Armor Plating Hardlight Generator > --- WEAPON ----------- Particle Gun Improved Assault Rifle > --- INVENTORY -------- Improved Ion Engine EM Shotgun Mining Laser Signal Generator [Rating: 29] Favorites ----------- Power Heavy Ion Engine Engine Heavy Ion Engine Power Core Light Nuclear Core Propulsion Aluminum Leg Treads Light Treads Leg Aluminum Leg Flight Unit Flight Unit Utility Light Armor Plating Device Cooling System Processor Targeting Computer Protection Light Armor Plating Weapon Improved Assault Rifle Energy Gun Particle Gun Ballistic Gun Improved Assault Rifle Launcher Rocket Launcher Special Weapon Mining Laser Build | -11 -10 -10 -9 -8 ------- Run | Yrd Mat Min Mat Mat Slots Evolved 4 | . . . 2 2 Power . | . . . . . Propulsion 2 | . . . 1 1 Utility 2 | . . . 1 1 Weapon . | . . . . . Parts Attached 64 | 5 12 1 26 20 Power 9 | 1 1 . 3 4 Engine 6 | 1 1 . 2 2 Core 3 | . . . 1 2 Reactor . | . . . . . Propulsion 22 | 2 6 . 10 4 Treads 1 | . . . 1 . Leg 17 | 2 2 . 9 4 Wheel . | . . . . . Hover . | . . . . . Flight 4 | . 4 . . . Utility 14 | . 3 . 6 5 Device 4 | . 1 . 1 2 Storage . | . . . . . Processor 1 | . . . . 1 Hackware . | . . . . . Protection 9 | . 2 . 5 2 Artifact . | . . . . . Weapon 19 | 2 2 1 7 7 Energy Gun 7 | 2 2 . . 3 Energy Cannon . | . . . . . Ballistic Gun 7 | . . . 5 2 Ballistic Cannon . | . . . . . Launcher 2 | . . 1 1 . Special Weapon 3 | . . . 1 2 Impact Weapon . | . . . . . Slashing Weapon . | . . . . . Piercing Weapon . | . . . . . Special Melee Weapon . | . . . . . Unidentified Prototypes 2 | . . . 2 . Parts Lost 33 | . 8 . 9 16 Power 5 | . 1 . 2 2 Propulsion 8 | . 3 . 2 3 Utility 10 | . 1 . 3 6 Weapon 10 | . 3 . 2 5 Highest Loss Streak 9 | . 3 . 2 9 To Critical Strikes . | . . . . . Average Slot Usage (%) 83 | . 75 57 83 90 Engine 8 | . 14 14 7 4 Core 1 | . . . 1 4 Leg 24 | . 17 . 24 33 Flight 4 | . 10 28 3 . Device 9 | . 9 . 9 11 Processor 2 | . . . . 7 Protection 12 | . 7 . 16 12 Energy Gun 5 | . 16 . . 6 Ballistic Gun 9 | . . . 14 9 Launcher 2 | . . 14 4 . Naked Turns . | . . . . . Heaviest Build 28 | 9 12 8 23 28 Greatest Support 61 | 20 20 8 30 61 Greatest Overweight (x) 1 | . 1 . 1 . Average Overweight (x) . | . . . . . Largest Inventory Capacity 5 | 5 5 5 5 5 Average Capacity 5 | 5 5 5 5 5 Most Carried 5 | . 3 5 5 5 Average Carried 3 | . . 4 4 4 Final Capacity 5 | 5 5 5 5 5 Final Carried 5 | . 3 5 4 4 Class Distribution -------------------- 67% | Scavenger-Mutant 32% | Mutant Dominant Class ---------------- Mutant | -10/Materials Mutant | -10/Mines Scavenger-Mutant | -9/Materials Scavenger-Mutant | -8/Materials Resources | -11 -10 -10 -9 -8 ----------- Run | Yrd Mat Min Mat Mat Matter Collected 1313 | 197 123 . 617 376 Remotely . | . . . . . Salvage Created 1660 | . 258 . 845 557 Parts 104 | . 15 . 59 30 Haulers Intercepted 3 | . . . 3 . Recyclers Shooed 4 | . . . 3 1 Parts Field Recycled . | . . . . . Retrieved Matter . | . . . . . Parts Self-Destructed . | . . . . . Prevented . | . . . . . Kills | -11 -10 -10 -9 -8 ------- Run | Yrd Mat Min Mat Mat Combat Hostiles Destroyed 42 | . 7 . 24 11 Melee 1 | . 1 . . . Guns 27 | . 4 . 12 11 AOE 12 | . . . 12 . Classes Destroyed 9 | . 4 . 2 3 Builder 1 | . . . . 1 Hauler 3 | . . . 3 . Recycler 2 | . 1 . 1 . Watcher 3 | . 1 . 1 1 Swarmer 11 | . 3 . 8 . Grunt 20 | . 4 . 9 7 Duelist 1 | . . . . 1 Sentry 9 | . . . 7 2 Hunter 1 | . . . . 1 Best Kill Streak 6 | . 4 . 6 3 Combat Bots Only 6 | . 3 . 6 3 Max Kills in Single Turn 2 | . 1 . 2 2 Gunslinging . | . . . . . Exploded 2 | . . . 2 . Melee 1 | . 1 . . . Uniques/NPCs Destroyed . | . . . . . Combat | -11 -10 -10 -9 -8 -------- Run | Yrd Mat Min Mat Mat Hostile Shots Fired 391 | . 99 1 136 155 Missed 125 | . 31 . 48 46 Damage Taken 4588 | . 789 19 1462 2318 Core 790 | . 114 19 227 430 Absorbed by Shields . | . . . . . Core Remaining (%) 63 | 100 . 46 43 . Volleys Fired 198 | . 62 . 70 66 Largest 2 | . 2 . 2 2 Hottest 145 | . 90 . 100 145 Shots Fired 291 | . 64 . 100 127 Gun 252 | . 64 . 72 116 Cannon . | . . . . . Launcher 17 | . . . 17 . Special 22 | . . . 11 11 Kinetic 144 | . . . 72 72 Thermal 115 | . 62 . 11 42 Explosive 17 | . . . 17 . Electromagnetic 15 | . 2 . . 13 Robot Hit Streak 16 | . 7 . 14 16 Robot Miss Streak 4 | . 3 . 3 4 Penetration Max . | . . . . . Secondary Targets 2 | . . . 1 1 Max Gunslinging Chain 1 | . . . 1 1 Shots Hit Robots 184 | . 34 . 66 84 Core Hits 97 | . 12 . 50 35 Critical Kills . | . . . . . Critical Parts Destroyed . | . . . . . Critical Strikes 4 | . 1 . . 3 Burn 4 | . 1 . . 3 Melee Attacks . | . . . . . Impact . | . . . . . Slashing . | . . . . . Piercing . | . . . . . Sneak Attacks . | . . . . . Combat Hostiles . | . . . . . Follow-up Attacks . | . . . . . Damage Inflicted 3715 | . 419 . 1992 1304 Guns 2461 | . 403 . 829 1229 Cannons . | . . . . . Explosions 1122 | . . . 1122 . Melee . | . . . . . Ramming 108 | . 16 . 41 51 Kinetic 1609 | . . . 829 780 Thermal 965 | . 403 . 173 389 Explosive 949 | . . . 949 . Electromagnetic 84 | . . . . 84 Impact . | . . . . . Slashing . | . . . . . Piercing . | . . . . . Highest Corruption 15 | . . . . 15 Average Corruption 5 | . . . . 5 Corruption Purged . | . . . . . Corruption Blocked . | . . . . . Effects 6 | . . . . 6 Message Errors 1 | . . . . 1 Matter Fused 3 | . . . . 3 Heat Flow Errors 1 | . . . . 1 Misdirections 1 | . . . . 1 Overload Shots . | . . . . . Overflow Damage 53 | . . . 53 . Projectiles . | . . . . . Explosions 53 | . . . 53 . Melee . | . . . . . Knockbacks 1 | . . . . 1 Impact 1 | . . . . 1 Kinetic . | . . . . . Secondary . | . . . . . Self-Inflicted Damage 323 | . . . 323 . Shots 11 | . . . 11 . Rammed . | . . . . . Targets Rammed 36 | . 13 . 7 16 Kicked 36 | . 13 . 7 16 Crushed . | . . . . . Highest Temperature 467 | . 467 . 4 172 Average Temperature 114 | . 230 . 4 37 Received Heat Transfer 1311 | . 345 . 381 585 Effects 4 | . 4 . . . Shutdowns 1 | . 1 . . . Energy Bleed 2 | . 2 . . . Interference 1 | . 1 . . . Siege Activations . | . . . . . Robots Corrupted . | . . . . . Combat Hostiles . | . . . . . Parts Fried . | . . . . . Impact Corruptions . | . . . . . Robots Melted 2 | . 2 . . . Combat Hostiles 2 | . 2 . . . Parts Melted 3 | . 3 . . . Heat Transferred 2376 | . 1116 . 100 1160 Parts Sabotaged . | . . . . . Parts Stolen . | . . . . . Parts Stripped . | . . . . . Power Chain Reactions . | . . . . . Alert | -11 -10 -10 -9 -8 ------- Run | Yrd Mat Min Mat Mat Peak Influence 475 | . 272 120 475 319 Initial 178 | . . 105 31 178 Average 190 | . 64 106 280 174 Maximum Alert Level 2 | . 1 . 2 1 Low Security (%) 67 | 100 95 100 38 81 Level 1 17 | . 4 . 25 18 Level 2 15 | . . . 36 . Level 3 . | . . . . . Level 4 . | . . . . . Level 5 . | . . . . . High Security . | . . . . . Max Security . | . . . . . Squads Dispatched 6 | . 3 . 1 2 Investigation 3 | . 1 . 1 1 Extermination . | . . . . . Reinforcement 3 | . 2 . . 1 Assault . | . . . . . Garrison . | . . . . . Intercept . | . . . . . Searches Triggered . | . . . . . Construction Impeded . | . . . . . Haulers Reinforced . | . . . . . Active Scanning Responses . | . . . . . Cargo Convoy Interrupts . | . . . . . Stealth | -11 -10 -10 -9 -8 --------- Run | Yrd Mat Min Mat Mat Distress Signals 3 | . 1 . 1 1 Communications Jammed . | . . . . . Distress Signals . | . . . . . Times Spotted 83 | . 21 7 29 26 Peak Tracking Total 9 | . 6 9 6 6 Tactical Retreats 9 | . 3 1 . 5 Traps | -11 -10 -10 -9 -8 ------- Run | Yrd Mat Min Mat Mat Traps Triggered 4 | . 2 . 1 1 Indirectly . | . . . . . Trap Hack Attempts . | . . . . . Triggered . | . . . . . Disarmed . | . . . . . Reprogrammed . | . . . . . Reused 2 | . . . 2 . Traps Extracted . | . . . . . Installed 2 | . . . 2 . Triggered 2 | . . . 2 . Most Traps Carried 2 | . . 2 2 . Machines | -11 -10 -10 -9 -8 ---------- Run | Yrd Mat Min Mat Mat Machines Disabled 5 | . . . 4 1 Max in Single Turn 2 | . . . 2 1 Machines Repaired . | . . . . . Machines Dismantled . | . . . . . Machines Sabotaged . | . . . . . Overloaded Fab Kills . | . . . . . Hacking | -11 -10 -10 -9 -8 --------- Run | Yrd Mat Min Mat Mat Machines Accessed 13 | . 6 . 3 4 Terminals 11 | . 5 . 3 3 Fabricators . | . . . . . Repair Stations . | . . . . . Recycling Units 2 | . 1 . . 1 Scanalyzers . | . . . . . Garrison Access . | . . . . . Total Hacks 35 | . 16 . 10 9 Successful 22 | . 9 . 6 7 Failed 13 | . 7 . 4 2 Catastrophic 1 | . . . 1 . Database Lockouts . | . . . . . Manual 5 | . 1 . 1 3 Terminals 30 | . 12 . 10 8 Fabricators . | . . . . . Repair Stations . | . . . . . Recycling Units 5 | . 4 . . 1 Scanalyzers . | . . . . . Garrison Access . | . . . . . Terminal Hacks 18 | . 6 . 6 6 Record 7 | . . . 2 5 Prototype ID Bank 1 | . . . . 1 Level Access Points 1 | . 1 . . . Branch Access Points 1 | . 1 . . . Emergency Access Points 2 | . 1 . 1 . Locate Traps 2 | . 1 . 1 . Security Status 1 | . 1 . . . Zone Layout 3 | . 1 . 2 . Fabricator Hacks . | . . . . . Repair Station Hacks . | . . . . . Recycling Unit Hacks 4 | . 3 . . 1 Process 1 | . 1 . . . Report Inventory 2 | . 1 . . 1 Retrieve Matter 1 | . 1 . . . Scanalyzer . | . . . . . Garrison Access Hacks . | . . . . . Unauthorized Hacks . | . . . . . Terminals . | . . . . . Fabricators . | . . . . . Repair Stations . | . . . . . Recycling Units . | . . . . . Scanalyzers . | . . . . . Garrison Access . | . . . . . Data Cores Recovered . | . . . . . Used . | . . . . . Hacking Detections 11 | . 4 . 3 4 Full Trace Events 1 | . . . . 1 Feedback Events . | . . . . . Feedback Blocked . | . . . . . Robot Schematics Acquired . | . . . . . Robots Built . | . . . . . Authchips . | . . . . . Time . | . . . . . Total Robot Build Rating . | . . . . . Part Schematics Acquired . | . . . . . Parts Built . | . . . . . Authchips . | . . . . . Time . | . . . . . Total Part Build Rating . | . . . . . Parts Repaired . | . . . . . Time . | . . . . . Parts Recycled . | . . . . . Recycled Matter 22 | . 22 . . . Retrieved Matter 22 | . 22 . . . Retrieved Components . | . . . . . Parts Scanalyzed . | . . . . . Part Schematics Acquired . | . . . . . Parts Damaged . | . . . . . Bothacking | -11 -10 -10 -9 -8 ------------ Run | Yrd Mat Min Mat Mat Used RIF Installer . | . . . . . Robots Hacked . | . . . . . Non-combat . | . . . . . Combat . | . . . . . Robot Hacks Applied . | . . . . . Relay Couplers Released . | . . . . . Fabnet Peak Effective % . | . . . . . Robots Rewired . | . . . . . Allies Hacked . | . . . . . Hacks Repelled . | . . . . . Allies | -11 -10 -10 -9 -8 -------- Run | Yrd Mat Min Mat Mat Total Allies 4 | . . 4 . . Largest Group 3 | . . 3 1 . Highest-Rated Group 47 | . . 47 31 . Highest-Rated Ally 31 | . . 31 31 . Total Orders . | . . . . . Ally Attacks 23 | . . 19 4 . Total Damage 286 | . . 223 63 . Kills 3 | . . 3 . . Allies Corrupted . | . . . . . Allies Melted . | . . . . . Intel | -11 -10 -10 -9 -8 ------- Run | Yrd Mat Min Mat Mat Robot Analysis Total . | . . . . . Derelict Logs Recovered 1 | . . 1 . . Drone Launches . | . . . . . Drone Recoveries . | . . . . . Exploration | -11 -10 -10 -9 -8 ------------- Run | Yrd Mat Min Mat Mat Turns Passed 3585 | 83 756 107 1536 1103 Spaces Moved 3039 | 69 948 253 1112 657 Core 9 | 9 . . . . Treads . | . . . . . Legs 1777 | 60 283 . 777 657 Wheels . | . . . . . Hover . | . . . . . Flight 1253 | . 665 253 335 . Fastest Speed 37 | 50 37 37 37 120 Average Speed 94 | 110 62 37 114 126 Slowest Speed 190 | 120 130 37 190 130 Overloaded Moves . | . . . . . Propulsion Burnouts . | . . . . . Robots Hopped 10 | . 8 2 . . Cave-ins Triggered 2 | . . . . 2 Exploration Rate (%) 47 | 4 88 61 46 36 Regions Visited 4 Branch Regions 1 Pre-discovered Areas 1 | . . 1 . . Known Exits Taken 2 | . 1 1 . . Unknown Exits Taken 2 | 1 . . 1 . Scrap Searched . | . . . . . Spaces Dug 19 | . . . 11 8 Terrain Destroyed 179 | . . . 170 9 Melee . | . . . . . Projectile 20 | . . . 11 9 AOE 159 | . . . 159 . Terrain Rammed . | . . . . . Walls Destroyed . | . . . . . Machines Disabled . | . . . . . Actions | -11 -10 -10 -9 -8 --------- Run | Yrd Mat Min Mat Mat Total 3393 | 73 1032 266 1251 771 Wait 19 | . . 4 15 . Move 3015 | 68 931 248 1111 657 Hop 10 | . 8 2 . . Pick Up 22 | . 5 5 6 6 Fast Attach 31 | 5 6 . 15 5 Attach 13 | . 3 . 4 6 Detach 2 | . . 1 1 . Swap 20 | . 3 1 7 9 Drop 25 | . 1 5 13 6 Fire 198 | . 62 . 70 66 Melee . | . . . . . Ram . | . . . . . Kick 36 | . 13 . 7 16 Crush . | . . . . . Escape Stasis . | . . . . . Rewire . | . . . . . Trap 2 | . . . 2 . Miscellaneous . | . . . . . Route ------- -11/Scrapyard -10/Materials (discovered 4 exits: *Mat x3 / *Min) -10/Mines -9/Materials -8/Materials History --------- Turn | Location | Event 5 | -11/Scrapyard | Discovered new exit (range 15) 84 | -11/Scrapyard | Entered Materials 306 | -10/Materials | Identified exit to Mines 333 | -10/Materials | Build established: Mutant 476 | -10/Materials | Lost 3 parts (1n1u1w) 649 | -10/Materials | Discovered new exit (range 10) 656 | -10/Materials | Identified exit to Materials 840 | -10/Materials | Entered Mines 842 | -10/Mines | YI-UF0 nonchalantly dropped a Grenade Launcher on the ground 871 | -10/Mines | Assisted by bots powering up and referring to "LRC-V3" 897 | -10/Mines | Found a hidden stash of uninstalled traps 912 | -10/Mines | Assembled infested the area 917 | -10/Mines | Assisted by a Guerilla fighting off Assembled 921 | -10/Mines | Core integrity fell below 50% 938 | -10/Mines | Discovered exit to Materials (range 8) 940 | -10/Mines | Met a Derelict testing a Signal Generator 944 | -10/Mines | Found Signal Generator 947 | -10/Mines | Entered Materials 947 | -9/Materials | Accompanied by 1 ally 947 | -9/Materials | Evolved 2 slots: Propulsion x1, Utility x1 1043 | -9/Materials | Discovered new exit (range 12) 2011 | -9/Materials | Build established: Scavenger-Mutant 2171 | -9/Materials | Core integrity fell below 50% 2483 | -9/Materials | Entered another Materials area 2483 | -8/Materials | Evolved 2 slots: Propulsion x1, Utility x1 3549 | -8/Materials | Crushed by falling debris 3552 | -8/Materials | Crushed by falling debris 3552 | -8/Materials | System corruption reached 10% 3573 | -8/Materials | Core integrity fell below 50% 3586 | -8/Materials | Self-destructed Last Messages --------------- Acquired Corrupted Imp. Ion Engine. U-05 Engineer builds a Wall. Penetrated by Slug. Titanium Leg destroyed. Slug penetrates Terminal. Terminal disabled. Particle Gun destroyed. Kicked H-55 Commando. Critical hit (Destroy). Hrd. Medium Armor Plating destroyed. Kicked H-55 Commando. Critical hit (Burn: +37). Kicked H-55 Commando. Penetrated by Slug. Kicked H-55 Commando. H-55 Commando knocked back. System corrupted: Heat flow error (+203). Penetrated by Slug. Kicked H-55 Commando. Penetrated by Slug. Map ----- +----------------------------------------------------+ | | | | | | | | | | | | | | | | | | | | | | | | | | | | | | | | | | | ?????????????????????????????????????????????????? | | ?????????????????????????????????????????????????? | | ??????????????##########?????????????????????????? | | ??????????????#[ #?????????????????????????? | | ??????????????# /// #?????????????????????????? | | ??????????????# /// #######???????????????????? | | ??????????????# // # #########???????????? | | ??????????????# # #???????????? | | ??????????????# %%/h@ #???????????? | | ??????????????# "T %# Y g ????????? | | ??????????????# "" [ =# ##### ###?????????? | | ??????????????# !%### ###???# #???????????? | | ??????????????############ #?????# #???????????? | | ??????????????????????#### #?????# #???????????? | | ??????????????????????###" #?????# #???????????? | | ??????????????????????####+####### #???????????? | | ??????????????????????# = ## ##??????????? | | ??????????????????????# "" # ##+####### | | ??????????????????????# """ # | | ??????????????????????# S" + | | ??????????????????????# """ # | | ??????????????????????# """ # ##+#####???? | | ??????????????????????# """ / ### ###??????????? | | ????????????????????# #?# #????????????? | | ????????????????????###########?# #????????????? | | #???????????????????????????????# #????????????? | | #?????########################### #????????????? | | % % % % % % #????????????? | | #?????########################### #????????????? | | #???????????????????# #??# #????????????? | | #???????????????????# #??# #????????????? | | #???????????????????# #??# #????????????? | | #???????????????????# #??# #????????????? | +----------------------------------------------------+ Best States ------------- Heat Dissipation 53 Energy Generation 14 Energy Capacity 280 Matter Stores 300 Matter Capacity 300 Sight Range 16 Terrain Scan Density 10 Armor Coverage 450 Evasion (%) 62 Targeting Accuracy 5 Item Schematics ----------------- None Robot Schematics ------------------ None Fabricated ------------ Nothing Alien Tech Used ----------------- None Achievements -------------- None Challenges ------------ None Game ------ Seed WeaponsEtherialDatajack Manual? 0 Play Time 00:44:28 Cumulative 12.8 hours Start 2024.07.02 @ 11:43:54 End 2024.07.02 @ 12:28:15 Sessions 1 Manual Loads 0 Difficulty Rogue Special Mode None Game No. 31 Rogue 31 Adventurer 0 Explorer 0 Win Type - Total 0 Types 0/0/0/0/0/0/0/0/0 Lore% 15 Gallery% 18 Achievement% 16 Wizard Run 0 Options --------- Layout 2 ASCII 0 Keyboard 1 Movement Arrows Keybinds 0 Fullscreen 1 Font 24/Cog Map View 50x44 Zoom Use 0% Tactical HUD 0 Map Filters NONE Filters NONE Steam 1 RUN: b6b789e0-e45d-45db-bbfd-a7f04eabd50e